Cogmind - Beta 15 *** ADVENTURER MODE // 2025.05.08 @ 19:26:33 Player: garlic bread Result: Destroyed by H-55 Commando with Gauss Rifle Performance ------------- Evolutions (3) 1500 Regions Visited (7) 1400 Robots Destroyed (27) 135 Value Destroyed (947) 947 Prototype IDs (2) 40 Alien Tech Used (0) 0 Bonus (0) 0 TOTAL SCORE: 4022 Bonus ------- None Cogmind --------- Core Integrity 0/700 Matter 260/300 Energy 100/100 System Corruption 6% Temperature Cool (0) Movement Walking (130) Location -7/Factory Parts ------- > --- POWER (2) -------- (None) > --- PROPULSION (4) --- Improved Titanium Leg (fused) > --- UTILITY (4) ------ (None) > --- WEAPON (3) ------- (None) > --- INVENTORY (5) ---- Katana Peak State ------------ > --- POWER ------------ Ion Engine Heavy Ion Engine > --- PROPULSION ------- Aluminum Leg Aluminum Leg Improved Hover Unit > --- UTILITY ---------- Small Battery Hacking Suite > --- WEAPON ----------- Plasma Cannon Bore Cannon Katana > --- INVENTORY -------- (None) [Rating: 24] Favorites ----------- Power Ion Engine Engine Ion Engine Propulsion Aluminum Leg Leg Aluminum Leg Hover Unit Improved Hover Unit Flight Unit Flight Unit Utility Small Battery Storage Small Battery Hackware Hacking Suite Weapon Katana Energy Gun EM Pulse Gun Energy Cannon Plasma Cannon Ballistic Gun Light Assault Rifle Ballistic Cannon Bore Cannon Special Weapon Plasma Cutter Slashing Weapon Katana Special Melee Weapon Datajack Build | -11 -10 -10 -10 -9 -8 -8 -7 ------- Run | Yrd Mat Min Exi Min Mat Sto Fac Slots Evolved 6 | . . . . . 4 . 2 Power 1 | . . . . . . . 1 Propulsion 2 | . . . . . 2 . . Utility 2 | . . . . . 1 . 1 Weapon 1 | . . . . . 1 . . Parts Attached 30 | 5 4 5 . 1 4 5 6 Power 3 | 1 . 1 . . . 1 . Engine 3 | 1 . 1 . . . 1 . Core . | . . . . . . . . Reactor . | . . . . . . . . Propulsion 11 | 2 . 2 . . 2 2 3 Treads . | . . . . . . . . Leg 5 | 2 . . . . . 1 2 Wheel . | . . . . . . . . Hover 2 | . . . . . 1 . 1 Flight 4 | . . 2 . . 1 1 . Utility 4 | . 2 1 . . . . 1 Device . | . . . . . . . . Storage 3 | . 2 1 . . . . . Processor . | . . . . . . . . Hackware 1 | . . . . . . . 1 Protection . | . . . . . . . . Artifact . | . . . . . . . . Weapon 12 | 2 2 1 . 1 2 2 2 Energy Gun 3 | 1 1 . . . . 1 . Energy Cannon 1 | . . . . . . . 1 Ballistic Gun 3 | 1 1 . . . . . 1 Ballistic Cannon 1 | . . . . 1 . . . Launcher . | . . . . . . . . Special Weapon 1 | . . . . . 1 . . Impact Weapon . | . . . . . . . . Slashing Weapon 2 | . . . . . 1 1 . Piercing Weapon . | . . . . . . . . Special Melee Weapon 1 | . . 1 . . . . . Unidentified Prototypes 2 | . . . . . . 2 . Corrupted Parts 1 | . . . . . . . 1 System Corruption 4 | . . . . . . . 4 Parts Lost 21 | . . . . 1 1 8 11 Power 3 | . . . . . . 1 2 Propulsion 8 | . . . . . 1 4 3 Utility 2 | . . . . . . . 2 Weapon 8 | . . . . 1 . 3 4 Highest Loss Streak 10 | . . . . 1 1 4 10 To Critical Strikes . | . . . . . . . . Average Backups 2 | 2 4 4 5 4 4 2 . Power . | . 1 1 1 1 1 . . Propulsion 1 | . . 2 3 3 2 1 . Utility . | . . . . . . . . Weapon . | . 1 1 1 . 1 . . Tool/Special . | . . . . . . . . Unused Backups 2 | . 1 1 . . . . . Power 1 | . 1 . . . . . . Propulsion 1 | . . 1 . . . . . Utility . | . . . . . . . . Weapon . | . . . . . . . . Tool/Special . | . . . . . . . . Average Slot Usage (%) 67 | . 97 89 85 80 63 62 35 Engine 9 | . 14 14 14 14 9 8 6 Leg 12 | . 28 7 . . . 12 8 Flight 10 | . . 20 28 28 22 14 . Storage 10 | . 25 17 14 14 9 5 2 Energy Gun 3 | . 14 3 . . . . . Ballistic Gun 6 | . 14 14 14 14 9 1 . Ballistic Cannon 3 | . . . . 5 . 7 2 Special Weapon 1 | . . . . . 6 2 . Slashing Weapon 5 | . . . . . 7 10 3 Special Melee Weapon 1 | . . 10 14 4 . . . Peak Build Rating 24 | 5 7 7 6 10 11 19 24 Average Rating 10 | 3 6 6 6 7 9 14 11 On Entrance 6 | . 5 7 6 6 5 10 13 Naked Turns 20 | . . . . . . . 20 Heaviest Build 32 | 9 18 17 6 14 8 23 32 Greatest Support 30 | 20 20 20 8 8 12 30 20 Greatest Overweight (x) 5 | . . . . 1 . 3 5 Average Overweight (x) . | . . . . . . . . Largest Inventory Capacity 8 | 5 8 8 5 5 5 5 5 Average Capacity 5 | 5 8 5 5 5 5 5 5 Most Carried 7 | 5 5 7 5 5 5 5 5 Average Carried 2 | 2 4 4 5 4 4 2 . Final Capacity 8 | 5 8 5 5 5 5 5 5 Final Carried 5 | 3 5 5 5 5 4 3 1 Class Distribution -------------------- 90% | Mutant 9% | Hacker-Mutant Dominant Class ---------------- Mutant | -10/Materials Mutant | -10/Mines Mutant | -10/Exiles Mutant | -9/Mines Mutant | -8/Materials Mutant | -8/Storage Hacker-Mutant | -7/Factory Resources | -11 -10 -10 -10 -9 -8 -8 -7 ----------- Run | Yrd Mat Min Exi Min Mat Sto Fac Matter Collected 827 | 250 126 26 . 27 45 293 60 Remotely . | . . . . . . . . Salvage Created 994 | . 163 47 . 27 115 358 284 Parts 58 | . 7 8 . 5 9 17 12 Haulers Intercepted . | . . . . . . . . Recyclers Shooed . | . . . . . . . . Parts Field Recycled . | . . . . . . . . Retrieved Matter . | . . . . . . . . Parts Self-Destructed . | . . . . . . . . Prevented . | . . . . . . . . Kills | -11 -10 -10 -10 -9 -8 -8 -7 ------- Run | Yrd Mat Min Exi Min Mat Sto Fac Combat Hostiles Destroyed 24 | . 3 3 . 2 2 9 5 Melee 7 | . . . . . 2 5 . Guns 6 | . 2 3 . . . . 1 Cannons 10 | . . . . 2 . 4 4 AOE 1 | . 1 . . . . . . Classes Destroyed 7 | . 2 1 . . 1 1 2 Builder 1 | . . . . . . 1 . Operator 1 | . . . . . . . 1 Watcher 1 | . 1 . . . . . . Swarmer 7 | . . 3 . 2 . 2 . Grunt 12 | . 3 . . . . 5 4 Brawler 1 | . . . . . . . 1 Sentry 4 | . . . . . 2 2 . Best Kill Streak 3 | . 3 3 . 2 2 2 3 Combat Bots Only 3 | . 2 3 . 2 2 2 3 Max Kills in Single Turn 2 | . 1 2 . 1 1 1 1 Gunslinging 1 | . . 1 . . . . . Exploded 1 | . 1 . . . . . . Melee 1 | . . . . . 1 1 . Uniques/NPCs Destroyed . | . . . . . . . . Combat | -11 -10 -10 -10 -9 -8 -8 -7 -------- Run | Yrd Mat Min Exi Min Mat Sto Fac Hostile Shots Fired 397 | . 20 26 . 39 10 127 175 Missed 144 | . 12 12 . 22 4 41 53 Hits 253 | . 8 14 . 17 6 86 122 Melee 6 | . . . . . . . 6 Projectile 247 | . 8 14 . 17 6 86 116 Critical Strikes 9 | . 1 . . . . 4 4 Damage Taken 2677 | . 87 105 . 108 66 974 1337 Core 1062 | . 23 4 . 50 23 253 709 Absorbed by Shields . | . . . . . . . . Ignored by Resistances 767 | . 27 33 . 34 20 275 378 Regen/Repaired (Parts) 11 | . . . . . . 11 . Core Remaining (%) 72 | 100 . . . 69 . 49 . Volleys Fired 79 | . 13 5 . 8 . 29 24 Largest 2 | . 2 2 . 2 . 2 2 Hottest 128 | . 60 60 . 68 . 93 128 Shots Fired 106 | . 26 10 . 10 . 34 26 Gun 62 | . 26 10 . 8 . 11 7 Cannon 44 | . . . . 2 . 23 19 Launcher . | . . . . . . . . Special . | . . . . . . . . Kinetic 68 | . 13 5 . 10 . 30 10 Thermal 16 | . . . . . . . 16 Explosive . | . . . . . . . . Electromagnetic 22 | . 13 5 . . . 4 . Robot Hit Streak 12 | . 12 4 . 5 . 9 10 Robot Miss Streak 4 | . 4 2 . 1 . 2 3 Penetration Max 1 | . . . . . . 1 . Secondary Targets 2 | . . 2 . . . . . Max Gunslinging Chain 1 | . . 1 . . . . . Shots Hit Robots 102 | . 17 9 . 8 7 39 22 Core Hits 45 | . 8 4 . 4 2 14 13 Critical Kills 5 | . . . . 1 . 3 1 Critical Parts Destroyed 5 | . . . . . . 5 . Critical Strikes 15 | . . . . 1 1 12 1 Destroy 11 | . . . . 1 . 9 1 Sever 4 | . . . . . 1 3 . Melee Attacks 28 | . . 4 . 1 7 15 1 Impact . | . . . . . . . . Slashing 23 | . . . . . 7 15 1 Piercing . | . . . . . . . . Sneak Attacks 3 | . . 2 . . . . 1 Combat Hostiles . | . . . . . . . . Follow-up Attacks . | . . . . . . . . Damage Inflicted 2129 | . 291 55 . 72 215 931 565 Guns 556 | . 225 55 . 36 . 101 139 Cannons 754 | . . . . 36 . 379 339 Explosions 66 | . 66 . . . . . . Melee 736 | . . . . . 215 451 70 Ramming 17 | . . . . . . . 17 Kinetic 790 | . 112 31 . 72 . 424 151 Thermal 393 | . 66 . . . . . 327 Explosive . | . . . . . . . . Electromagnetic 193 | . 113 24 . . . 56 . Impact . | . . . . . . . . Slashing 736 | . . . . . 215 451 70 Piercing . | . . . . . . . . Highest Corruption 6 | . . . . . . . 6 Average Corruption 4 | . . . . . . . 4 Corruption Purged . | . . . . . . . . Corruption Blocked . | . . . . . . . . Effects 6 | . . . . . . . 6 Message Errors 1 | . . . . . . . 1 Energy Discharges 2 | . . . . . . . 2 Parts Fused 1 | . . . . . . . 1 Data Loss (major) 1 | . . . . . . . 1 Weapon Failures 1 | . . . . . . . 1 Overload Shots . | . . . . . . . . Overflow Damage 68 | . . . . . . 13 55 Projectiles . | . . . . . . . . Explosions . | . . . . . . . . Melee 68 | . . . . . . 13 55 Knockbacks 1 | . . . . . . 1 . Impact . | . . . . . . . . Kinetic 1 | . . . . . . 1 . Secondary . | . . . . . . . . Self-Inflicted Damage 6 | . . . . . . . 6 Shots . | . . . . . . . . Rammed 5 | . . . . . . . 5 Targets Rammed 6 | . . . . . . . 6 Kicked 1 | . . . . . . . 1 Crushed . | . . . . . . . . Highest Temperature 378 | . 45 20 . 46 . 135 378 Average Temperature 73 | . 20 13 . 14 . 46 146 Received Heat Transfer 1197 | . 84 24 . . 27 576 486 Siege Activations . | . . . . . . . . Martial Activations . | . . . . . . . . Shielding Activations . | . . . . . . . . Robots Disrupted . | . . . . . . . . Combat Hostiles . | . . . . . . . . Robots Corrupted . | . . . . . . . . Combat Hostiles . | . . . . . . . . Parts Fried 1 | . 1 . . . . . . Impact Corruptions . | . . . . . . . . Robots Melted . | . . . . . . . . Combat Hostiles . | . . . . . . . . Parts Melted 1 | . . . . . . . 1 Heat Transferred 650 | . . . . . . . 650 Parts Sabotaged . | . . . . . . . . Parts Stolen . | . . . . . . . . Parts Stripped . | . . . . . . . . Power Chain Reactions 1 | . 1 . . . . . . Alert | -11 -10 -10 -10 -9 -8 -8 -7 ------- Run | Yrd Mat Min Exi Min Mat Sto Fac Maximum Alert Level . | . . . . . . . . Low Security (%) 100 | 100 100 100 . 100 100 100 100 Level 1 . | . . . . . . . . Level 2 . | . . . . . . . . Level 3 . | . . . . . . . . Level 4 . | . . . . . . . . Level 5 . | . . . . . . . . High Security . | . . . . . . . . Max Security . | . . . . . . . . Peak Influence 96 | . 56 71 . 71 60 96 53 Initial 35 | . . 1 . . 16 17 35 Average 27 | . 18 45 . 30 18 37 18 Influence Increases 973 | . 101 100 . 81 69 439 183 Destroy 0b10 Robot/C 480 | . 60 60 . 40 40 180 100 Destroy 0b10 Robot/NC 15 | . 5 . . . . 5 5 Destroy Leader 122 | . 22 10 . 10 20 40 20 Successful Hack 5 | . 5 . . . . . . Disable Machine 45 | . . . . . 9 27 9 Destroy Structure 21 | . 9 . . 1 . 7 4 Partial Spotted 15 | . . . . . . 15 . Lose Combat Pursuer 270 | . . 30 . 30 . 165 45 Influence Decreases 958 | . 97 43 61 30 71 397 259 Entered New Map 187 | . . 3 61 . 35 32 56 Time Decay 601 | . 97 40 . 30 36 288 110 Lost Part 170 | . . . . . . 77 93 Squads Dispatched 6 | . . . . . 1 4 1 Investigation 2 | . . . . . . 1 1 Extermination . | . . . . . . . . Reinforcement 3 | . . . . . 1 2 . Assault 1 | . . . . . . 1 . Garrison . | . . . . . . . . Intercept . | . . . . . . . . Searches Triggered . | . . . . . . . . Construction Impeded . | . . . . . . . . Haulers Reinforced . | . . . . . . . . Active Scanning Responses . | . . . . . . . . Cargo Convoy Interrupts . | . . . . . . . . Stealth | -11 -10 -10 -10 -9 -8 -8 -7 --------- Run | Yrd Mat Min Exi Min Mat Sto Fac Distress Signals 1 | . . . . . . 1 . Communications Jammed . | . . . . . . . . Distress Signals . | . . . . . . . . Times Spotted 61 | . 5 5 . 6 4 29 12 Peak Tracking Total 8 | . 3 3 . 4 3 8 6 Tactical Retreats 14 | . . 1 . 2 . 9 2 Traps | -11 -10 -10 -10 -9 -8 -8 -7 ------- Run | Yrd Mat Min Exi Min Mat Sto Fac Traps Triggered 1 | . 1 . . . . . . Indirectly . | . . . . . . . . Trap Hack Attempts . | . . . . . . . . Triggered . | . . . . . . . . Disarmed 6 | . . . . . . 6 . Reprogrammed . | . . . . . . . . Reused . | . . . . . . . . Traps Extracted . | . . . . . . . . Installed . | . . . . . . . . Triggered . | . . . . . . . . Machines | -11 -10 -10 -10 -9 -8 -8 -7 ---------- Run | Yrd Mat Min Exi Min Mat Sto Fac Machines Disabled 5 | . . . . . 1 3 1 Max in Single Turn 1 | . . . . . 1 1 1 Garrison Access 1 | . . . . . . 1 . Machines Repaired . | . . . . . . . . Machines Dismantled 3 | . . . . . 1 2 . Machines Sabotaged . | . . . . . . . . Overloaded Fab Kills . | . . . . . . . . Hacking | -11 -10 -10 -10 -9 -8 -8 -7 --------- Run | Yrd Mat Min Exi Min Mat Sto Fac Machines Accessed 10 | . 4 . . . 1 4 1 Terminals 6 | . 3 . . . . 3 . Fabricators . | . . . . . . . . Repair Stations 1 | . . . . . . 1 . Recycling Units 2 | . 1 . . . . . 1 Scanalyzers 1 | . . . . . 1 . . Garrison Access . | . . . . . . . . Total Hacks 31 | . 9 . . . 3 13 6 Successful 24 | . 7 . . . 3 8 6 Failed 7 | . 2 . . . . 5 . Catastrophic . | . . . . . . . . Database Lockouts . | . . . . . . . . Manual 5 | . . . . . . 1 4 Terminals 12 | . 5 . . . . 7 . Fabricators . | . . . . . . . . Repair Stations 6 | . . . . . . 6 . Recycling Units 10 | . 4 . . . . . 6 Scanalyzers 3 | . . . . . 3 . . Garrison Access . | . . . . . . . . Terminal Hacks 8 | . 4 . . . . 4 . Record 2 | . 1 . . . . 1 . Emergency Access Points 2 | . 1 . . . . 1 . Alert Level 2 | . 1 . . . . 1 . Disarm Traps 1 | . . . . . . 1 . Zone Layout 1 | . 1 . . . . . . Fabricator Hacks . | . . . . . . . . Repair Station Hacks 4 | . . . . . . 4 . Scan Component 2 | . . . . . . 2 . Repair 2 | . . . . . . 2 . Recycling Unit Hacks 8 | . 3 . . . . . 5 Recycle Component 2 | . 1 . . . . . 1 Process 3 | . 1 . . . . . 2 Retrieve Matter 1 | . . . . . . . 1 Retrieve Components 2 | . 1 . . . . . 1 Scanalyzer 3 | . . . . . 3 . . Insert Component 1 | . . . . . 1 . . Analyze 2 | . . . . . 2 . . Garrison Access Hacks . | . . . . . . . . Unauthorized Hacks 1 | . . . . . . . 1 Terminals . | . . . . . . . . Fabricators . | . . . . . . . . Repair Stations . | . . . . . . . . Recycling Units 1 | . . . . . . . 1 Monitor 1 | . . . . . . . 1 Scanalyzers . | . . . . . . . . Garrison Access . | . . . . . . . . Data Cores Recovered 1 | . . . . . . . 1 Used . | . . . . . . . . Hacking Detections 9 | . 3 . . . . 4 2 Full Trace Events 3 | . 1 . . . . 1 1 Feedback Events . | . . . . . . . . Feedback Blocked . | . . . . . . . . Robot Schematics Acquired . | . . . . . . . . Robots Built . | . . . . . . . . Authchips . | . . . . . . . . Time . | . . . . . . . . Total Robot Build Rating . | . . . . . . . . Part Schematics Acquired 1 | . . . . . 1 . . Parts Built . | . . . . . . . . Authchips . | . . . . . . . . Time . | . . . . . . . . Total Part Build Rating . | . . . . . . . . Parts Repaired 1 | . . . . . . 1 . Time 77 | . . . . . . 77 . Parts Recycled 2 | . 1 . . . . . 1 Recycled Matter 40 | . 34 . . . . . 6 Retrieved Matter 6 | . . . . . . . 6 Retrieved Components . | . . . . . . . . Parts Scanalyzed 1 | . . . . . 1 . . Part Schematics Acquired 1 | . . . . . 1 . . Parts Damaged . | . . . . . . . . Bothacking | -11 -10 -10 -10 -9 -8 -8 -7 ------------ Run | Yrd Mat Min Exi Min Mat Sto Fac Used RIF Installer . | . . . . . . . . Robots Hacked 3 | . . 2 . 1 . . . Non-combat 1 | . . 1 . . . . . Combat 2 | . . 1 . 1 . . . Robot Hacks Applied 4 | . . 3 . 1 . . . parse_system 3 | . . 2 . 1 . . . no_distress 1 | . . 1 . . . . . Relay Couplers Released . | . . . . . . . . Fabnet Peak Effective % . | . . . . . . . . Robots Rewired . | . . . . . . . . Allies Hacked . | . . . . . . . . Hacks Repelled . | . . . . . . . . Allies | -11 -10 -10 -10 -9 -8 -8 -7 -------- Run | Yrd Mat Min Exi Min Mat Sto Fac Total Allies . | . . . . . . . . Largest Group . | . . . . . . . . Highest-Rated Group . | . . . . . . . . Highest-Rated Ally . | . . . . . . . . Total Orders . | . . . . . . . . Ally Attacks . | . . . . . . . . Total Damage . | . . . . . . . . Kills . | . . . . . . . . Allies Corrupted . | . . . . . . . . Allies Melted 1 | . . . . . . 1 . Intel | -11 -10 -10 -10 -9 -8 -8 -7 ------- Run | Yrd Mat Min Exi Min Mat Sto Fac Active Infowar (turns) . | . . . . . . . . Robot Analysis Total . | . . . . . . . . Derelict Logs Recovered . | . . . . . . . . Drone Launches . | . . . . . . . . Drone Recoveries . | . . . . . . . . Exploration | -11 -10 -10 -10 -9 -8 -8 -7 ------------- Run | Yrd Mat Min Exi Min Mat Sto Fac Turns Passed 1638 | 70 300 99 12 89 102 648 318 Spaces Moved 1270 | 49 209 167 32 120 108 415 170 Core 38 | 11 . . . . . . 27 Treads . | . . . . . . . . Legs 528 | 38 209 6 . . . 132 143 Wheels . | . . . . . . . . Hover . | . . . . . . . . Flight 704 | . . 161 32 120 108 283 . Fastest Speed 34 | 50 120 37 37 37 34 37 50 Average Speed 90 | 104 120 39 37 49 35 102 142 Slowest Speed 300 | 120 120 120 37 117 37 290 300 Overloaded Moves . | . . . . . . . . Propulsion Burnouts . | . . . . . . . . Robots Hopped . | . . . . . . . . Potential Cave-ins . | . . . . . . . . Cave-ins Triggered . | . . . . . . . . Exploration Rate (%) 25 | 3 48 30 8 37 11 61 6 Regions Visited 7 Branch Regions 4 Pre-discovered Areas 1 | . . . . . . 1 . Known Exits Taken . | . . . . . . . . Unknown Exits Taken 7 | 1 1 1 1 1 1 1 . Scrap Searched 2 | . . 1 . 1 . . . Spaces Dug . | . . . . . . . . Terrain Destroyed 21 | . 8 . . 2 . 7 4 Melee . | . . . . . . . . Projectile 13 | . . . . 2 . 7 4 AOE 8 | . 8 . . . . . . Terrain Rammed . | . . . . . . . . Walls Destroyed . | . . . . . . . . Machines Disabled . | . . . . . . . . Actions | -11 -10 -10 -10 -9 -8 -8 -7 --------- Run | Yrd Mat Min Exi Min Mat Sto Fac Total 1578 | 68 231 187 31 141 152 552 216 Wait 91 | 7 . . . 9 22 53 . Move 1263 | 48 208 166 31 119 107 414 170 Hop . | . . . . . . . . Pick Up 34 | 8 6 3 . 1 3 7 6 Fast Attach . | . . . . . . . . Attach 33 | 5 3 1 . 1 5 11 7 Detach 6 | . . . . 1 2 3 . Swap 12 | . 1 4 . . . 5 2 Drop 6 | . . 4 . 1 1 . . Fire 79 | . 13 5 . 8 . 29 24 Melee 28 | . . 4 . 1 7 15 1 Ram 5 | . . . . . . . 5 Kick 1 | . . . . . . . 1 Crush . | . . . . . . . . Escape Stasis . | . . . . . . . . Rewire . | . . . . . . . . Trap . | . . . . . . . . Miscellaneous 20 | . . . . . 5 15 . Route ------- -11/Scrapyard -10/Materials (discovered 3 exits: [*Mat] / [*Min x2]) -10/Mines (discovered 2 exits: [*Mat] / [*Exi]) -10/Exiles -9/Mines -8/Materials (discovered 2 exits: *Sto x2) -8/Storage -7/Factory History --------- Turn | Location | Event 12 | -11/Scrapyard | Discovered new exit (range 15) 71 | -11/Scrapyard | Entered Materials 72 | -10/Materials | Met a group of wandering Federalists 141 | -10/Materials | Discovered new exit (range 13) 313 | -10/Materials | Build established: Mutant 318 | -10/Materials | Discovered new exit (range 16) 338 | -10/Materials | Discovered new exit (range 19) 371 | -10/Materials | Entered Mines 372 | -10/Mines | Discovered new exit (range 12) 468 | -10/Mines | Deemed a non-threat by the Exiles lab entrance 468 | -10/Mines | Discovered new exit (range 5) 470 | -10/Mines | Entered Exiles 477 | -10/Exiles | Discovered new exit (range 15) 482 | -10/Exiles | Entered Mines 526 | -9/Mines | A weapon hastily lodged in a ceiling crevice suddenly fell to the ground 570 | -9/Mines | Discovered new exit (range 3) 571 | -9/Mines | Entered Materials 571 | -8/Materials | Evolved 4 slots: Propulsion x2, Utility x1, Weapon x1 611 | -8/Materials | Discovered new exit (range 15) 673 | -8/Materials | Discovered new exit (range 9) 673 | -8/Materials | Entered Storage 842 | -8/Storage | Lost 4 parts (1p1n2w) 1021 | -8/Storage | Repaired Flight Unit 1129 | -8/Storage | Learned location of Armory (-3) 1144 | -8/Storage | Met 01-MTF 1203 | -8/Storage | Garrison activated, responded to threat 1302 | -8/Storage | Discovered new exit (range 12) 1311 | -8/Storage | Core integrity fell below 50% 1321 | -8/Storage | Entered Factory 1321 | -7/Factory | Evolved 2 slots: Power x1, Utility x1 1506 | -7/Factory | Core integrity fell below 50% 1530 | -7/Factory | Lost 10 parts (2p3n2u3w) 1599 | -7/Factory | Core integrity fell below 20% 1639 | -7/Factory | Destroyed by H-55 Commando with Gauss Rifle Last Messages --------------- Wall collapses. >> MONITOR: Recycling Unit F004 accepting Imp. Heat Sink (87%). >> MONITOR: Recycling Unit F004 accepting Particle Gun (82%). B-48 Gladiator destroyed. Penetrated by Slug. Hpw. Shotgun destroyed. Slug penetrates Wall. Kicked H-55 Commando out of the way. Penetrated by Slug. Slug penetrates Wall. Penetrated by Slug. Slug penetrates Wall. Penetrated by Slug. Slug penetrates Wall. Connecting with Fabricator... Acquired Katana. Slug penetrates Assembly Bed. Assembly Bed disabled. Map ----- +----------------------------------------------------+ | ?# #????????????# #?????????????? | | ?# #????????????# #?????????????? | | ## #????????????# #?????????????? | | ## #????????????# #?????????????? | | ## #????????????# #?????????????? | | ####"####/############### #?????????????? | | # #?????????????? | | # ###### #?????????????? | | # #????# #?????????????? | | + #+###### +?????????????? | | # # ## #?????????????? | | # # ## #?????????????? | | # # ## #?????????????? | | # ########?????????????? | | # #????????????????????? | | " ######???????????????? | | # #""""#???????????????? | | #### ##+##/#"F "########????????? | | ########+####^ ! +????????? | | #?# #^^ !#???????????? | | #?# """ # """""" """"""h #???????????? | | #?# "Y" # ^^"""""" """"""g #???????????? | | #?# # """"""h""""""g #???????????? | | #?#####+##### """""" """"" ####????????? | | #????# #### #????????? | | #????# [ @ +????????? | | #????# ###### #????????? | | #????## ##????# ##+########### #????????? | | ??????# #?????####???????????????? #????????? | | ??????# #??????????????????????????#????????? | | ??????# #???????????????????????????????????? | | ####### #???????????????????????????????????? | | ## ###?????????????????????????????????? | | % ^ #?????????????????????????????????? | | % #?????????????????????????????????? | | %%% ^ + ??????????????????????????? | | """ # ??????????????????????????? | | """ # ??????????????????????????????? | | ]] ##? ?????????????????????????????? | | ""% ]] #???###????????????????????????????? | | "%%% ] #??????????????????????????????????? | | """!!! #??????????????????????????????????? | | =% [ #??????????????????????????????????? | | %% #??????????????????????????????????? | | #??????????????????????????????????? | | ###### +??????????????????????????????????? | | ?""#?# #??????????????????????????????????? | | ?????? #??????????????????????????????????? | | ?????? #??????????????????????????????????? | | ?????? #??????????????????????????????????? | +----------------------------------------------------+ Best States ------------- Heat Dissipation 34 Energy Generation 19 Energy Capacity 530 Matter Stores 358 Matter Capacity 500 Sight Range 16 Terrain Scan Density 10 Resistance: KI 20 Resistance: TH 20 Resistance: EX 20 Resistance: EM 20 Resistance: I 20 Resistance: S 20 Resistance: P 20 Evasion (%) 63 Offensive Hacking 20 Item Schematics ----------------- Bore Cannon | -8/Materials | Scanalyzed Robot Schematics ------------------ None Fabricated ------------ Nothing Repaired ---------- Flight Unit | 45% | -8/Storage Alien Tech Used ----------------- None Achievements -------------- Please Form A Line True Hacker Challenges ------------ None Game ------ Seed HugeDecoderBotcube Manual? 0 Play Time 00:43:47 Cumulative 4.9 hours Start 2025.05.08 @ 18:38:48 End 2025.05.08 @ 19:26:33 Sessions 1 Manual Loads 0 Difficulty Adventurer Special Mode None Game No. 5 Rogue 0 Adventurer 5 Explorer 0 Win Type - Total 0 Types 0/0/0/0/0/0/0/0/0/0 Lore% 2 Gallery% 10 Achievement% 11 Wizard Run 0 Options --------- Layout 1 ASCII 0 Keyboard 0 Movement Numpad Keybinds 0 Fullscreen 1 Font 24/Smallcaps Map View 50x35 Zoom Use 0% Tactical HUD 0 Map Filters NONE Filters NONE Steam 1 RUN: 0edaf4ce-847a-4eea-8e27-3a5e502e6c20